bitfinex-derivatives/quotes_BTCF0:USTF0_20241008
["timestamp","ask_amount","ask_price","bid_price","bid_amount"]
[1728406129436,0.206008,62528.0,62517.0,0.080021]
[1728406129437,0.080024,62518.0,62517.0,0.080021]
[1728406129630,0.190024,62518.0,62517.0,0.080021]
[1728406130634,0.190024,62518.0,62517.0,0.082021]
[1728406131835,0.14998299,62518.0,62517.0,0.082021]
[1728406132030,0.14998299,62518.0,62517.0,0.08086451]
[1728406133235,0.3608,62520.0,62517.0,0.08086451]
[1728406133437,0.260021,62518.0,62517.0,0.002]
[1728406133643,0.380021,62518.0,62517.0,0.002]
[1728406134445,0.380021,62518.0,62517.0,0.001]
[1728406134446,0.200021,62518.0,62517.0,0.001]
[1728406134636,0.200021,62518.0,62517.0,0.081022]
[1728406135141,0.12,62518.0,62517.0,0.081022]
[1728406135542,0.12,62518.0,62517.0,0.12837232]
[1728406135942,0.12,62518.0,62517.0,0.12937232]
[1728406136143,0.12,62518.0,62517.0,0.082022]
[1728406137135,0.12,62518.0,62517.0,0.14535462]
[1728406137339,0.12,62518.0,62517.0,0.082022]
[1728406137532,0.12,62518.0,62517.0,0.14535462]
[1728406138341,0.3608,62520.0,62519.0,0.080019]
[1728406138544,0.3708,62520.0,62519.0,0.14335162]
[1728406138844,0.40992204,62520.0,62519.0,0.080019]
[1728406139049,0.04912204,62520.0,62519.0,0.559859]
[1728406139544,0.05011955,62520.0,62519.0,0.559859]
[1728406139740,0.05111955,62520.0,62519.0,0.559859]
[1728406139944,0.05111955,62520.0,62519.0,0.080019]
[1728406140255,0.05111955,62520.0,62519.0,1.159859]
[1728406140435,0.440803,62532.0,62531.0,0.080004]
[1728406140636,0.440803,62532.0,62531.0,0.260004]
[1728406140637,0.59991923,62532.0,62531.0,0.260004]
[1728406140837,0.51991579,62532.0,62531.0,0.260004]
[1728406141549,0.51991579,62532.0,62531.0,0.080004]
[1728406142047,0.51991579,62532.0,62531.0,0.740764]
[1728406142048,0.05711579,62532.0,62531.0,0.740764]
[1728406142349,0.05711579,62532.0,62531.0,1.340764]
[1728406142536,0.07999,62542.0,62541.0,0.079991]
[1728406142741,0.12909861,62542.0,62541.0,0.079991]
[1728406143243,0.04910861,62542.0,62541.0,0.079991]
[1728406143842,0.05710861,62542.0,62541.0,0.080991]
[1728406144437,0.05710861,62542.0,62541.0,0.260991]
[1728406144743,0.06410586,62542.0,62541.0,0.261991]
[1728406145145,0.06410586,62542.0,62541.0,0.28683181]
[1728406145549,0.015,62542.0,62541.0,0.28683181]
[1728406145950,0.27499,62542.0,62541.0,0.002]
[1728406146149,0.27499,62542.0,62533.0,0.080001]
[1728406146150,1.43278937,62542.0,62518.0,0.44082]
[1728406146446,0.260008,62528.0,62527.0,0.02703052]
[1728406146649,0.30912504,62528.0,62527.0,0.02703052]
[1728406146847,0.260008,62528.0,62527.0,0.10703952]
[1728406147043,0.260008,62528.0,62527.0,0.02703052]
[1728406147243,0.260008,62528.0,62527.0,0.00239895]
[1728406148751,0.260008,62528.0,62527.0,0.00339895]
[1728406149145,0.260008,62528.0,62527.0,0.00239895]
[1728406149453,0.260008,62528.0,62527.0,0.00439895]
[1728406150046,0.260008,62528.0,62517.0,0.02513758]
[1728406150047,0.29,62528.0,62517.0,0.02513758]
[1728406150252,0.080022,62518.0,62517.0,0.080021]
[1728406151751,0.081022,62518.0,62517.0,0.092021]
[1728406152048,0.191022,62518.0,62517.0,0.012]
[1728406152462,0.191022,62518.0,62517.0,0.023]
[1728406152649,0.291,62518.0,62507.0,0.080034]
[1728406152855,0.260032,62509.0,62508.0,0.080033]
[1728406153258,0.260032,62509.0,62504.0,0.38662843]
[1728406153451,0.260032,62509.0,62508.0,0.080033]
[1728406154478,0.080035,62507.0,62504.0,0.02582843]
[1728406154755,0.080035,62507.0,62498.0,0.1574]
[1728406155053,0.001,62509.0,62508.0,0.006]
[1728406155247,0.001,62509.0,62508.0,0.090033]
[1728406155848,0.08003,62511.0,62508.0,0.080033]
[1728406156148,0.001,62507.0,62506.0,0.080036]
[1728406157150,0.001,62507.0,62506.0,0.260036]
[1728406157450,0.0758,62516.0,62506.0,0.260036]
[1728406157451,0.0758,62516.0,62515.0,0.080024]
[1728406157651,0.1058,62516.0,62515.0,0.080024]
[1728406158245,0.080017,62521.0,62520.0,0.080018]
[1728406159257,0.080017,62521.0,62515.0,0.18]
[1728406159258,0.3608,62522.0,62521.0,0.080017]
[1728406160259,0.3608,62533.0,62521.0,1.159857]
[1728406160459,0.3608,62533.0,62532.0,0.260003]
[1728406160460,0.4808,62533.0,62532.0,0.260003]
[1728406161247,0.3608,62533.0,62532.0,0.260003]
[1728406161855,0.014,62533.0,62532.0,0.32433562]
[1728406162354,0.1528,62539.0,62538.0,0.079995]
[1728406162650,0.242794,62539.0,62538.0,0.079995]
[1728406163157,0.1528,62539.0,62538.0,0.079995]
[1728406163366,0.07999,62542.0,62541.0,0.079991]
[1728406164253,0.440787,62546.0,62545.0,0.079986]
[1728406164455,0.460787,62546.0,62545.0,0.079986]
[1728406164962,0.440787,62546.0,62545.0,0.079986]
[1728406165467,0.454787,62546.0,62545.0,0.080986]
[1728406166458,0.467787,62546.0,62545.0,0.081986]
[1728406167257,0.467787,62546.0,62545.0,0.080986]
[1728406167258,0.453787,62546.0,62545.0,0.080986]
[1728406167451,0.467787,62546.0,62545.0,0.081986]
[1728406168765,0.57427361,62546.0,62545.0,0.07378741]
[1728406169559,0.69427361,62546.0,62545.0,0.0736719]
[1728406171066,0.69427357,62546.0,62545.0,0.002]
[1728406171763,0.079995,62539.0,62531.0,0.2589]
[1728406171971,0.18648257,62538.0,62537.0,0.079995]
[1728406172469,0.08,62535.0,62534.0,0.08]
[1728406172669,0.29648657,62535.0,62534.0,0.08]
[1728406173369,0.2964938,62535.0,62534.0,0.08]
[1728406173569,0.2984938,62535.0,62534.0,0.08]
[1728406173762,0.08,62534.0,62533.0,0.02516264]
[1728406173959,0.9938938,62534.0,62528.0,0.080007]
[1728406174165,0.08001,62526.0,62525.0,0.00239881]
[1728406174358,0.4865038,62526.0,62525.0,0.00239881]
[1728406174970,0.4865038,62526.0,62516.0,0.080023]
[1728406175169,0.18,62518.0,62511.0,0.080028]
[1728406175365,0.080033,62509.0,62508.0,0.080033]
[1728406175671,0.080033,62509.0,62503.0,0.3608]
[1728406175672,0.2864938,62509.0,62503.0,0.38587314]
[1728406175869,0.080037,62506.0,62505.0,0.080037]
[1728406176068,0.1865308,62506.0,62505.0,0.080037]
[1728406176572,0.33614645,62506.0,62505.0,0.080037]
[1728406176771,0.24698594,62506.0,62505.0,0.080037]
[1728406177273,0.42798594,62506.0,62505.0,0.004]
[1728406177479,0.52798594,62506.0,62505.0,0.004]
[1728406177769,0.42898594,62506.0,62505.0,0.009]
[1728406178076,0.22198997,62506.0,62505.0,0.009]
[1728406182374,0.080046,62498.0,62497.0,0.080047]
[1728406183476,0.081046,62498.0,62497.0,0.083047]
[1728406183774,0.082046,62498.0,62497.0,0.088047]
[1728406183979,0.192046,62498.0,62497.0,0.088047]
[1728406184282,0.112,62498.0,62497.0,0.088047]
[1728406184469,0.002,62498.0,62497.0,0.088047]
[1728406186474,0.102,62498.0,62497.0,0.088047]
[1728406190578,0.182046,62498.0,62497.0,0.088047]
[1728406191982,0.12790671,62498.0,62497.0,0.088047]
[1728406193278,0.05,62498.0,62497.0,0.088047]
[1728406193674,0.130046,62498.0,62497.0,0.088047]
[1728406194380,0.05,62498.0,62497.0,0.088047]
[1728406195677,0.05,62498.0,62497.0,0.268047]
[1728406196378,0.05,62498.0,62497.0,0.33137962]
[1728406196579,0.05,62498.0,62497.0,0.268047]
[1728406198072,0.3608,62507.0,62497.0,1.348047]
[1728406198277,0.4708,62507.0,62506.0,0.12716671]
[1728406198483,0.4708,62507.0,62506.0,0.080036]
[1728406199287,0.3608,62507.0,62506.0,0.080036]
[1728406199494,0.3618,62507.0,62506.0,0.080036]
[1728406199783,0.001,62507.0,62506.0,0.080036]
[1728406200486,0.002,62507.0,62506.0,0.082036]
[1728406200787,0.002,62507.0,62506.0,0.442836]
[1728406201385,0.002,62507.0,62506.0,0.443836]
[1728406201578,0.002,62507.0,62506.0,0.59105238]
[1728406202285,0.002,62507.0,62506.0,0.23025238]
[1728406203578,0.002,62507.0,62506.0,0.32525131]
[1728406203782,0.002,62507.0,62506.0,0.37872556]
[1728406204088,0.002,62507.0,62506.0,1.53488556]
[1728406204283,0.002,62507.0,62506.0,0.37872556]
[1728406206978,0.002,62507.0,62506.0,0.10827297]
[1728406207589,0.05113018,62507.0,62506.0,0.10827297]
[1728406210482,0.0511307,62507.0,62506.0,0.10827297]
[1728406211387,0.17570141,62508.0,62507.0,0.47996]
[1728406211587,0.20685447,62530.0,62507.0,0.55836]
[1728406211883,0.20685447,62530.0,62520.0,0.260018]
[1728406211884,0.080011,62526.0,62520.0,0.260018]
[1728406212083,0.41819857,62521.0,62520.0,0.260018]
[1728406212283,0.05739857,62521.0,62520.0,0.260018]
[1728406212483,0.20685447,62530.0,62526.0,0.08001]
[1728406212484,0.05739857,62527.0,62526.0,0.08001]
[1728406212693,0.05739857,62528.0,62527.0,0.080009]
[1728406212899,0.16739857,62528.0,62527.0,0.080009]
[1728406213088,0.16739857,62528.0,62517.0,0.18]
[1728406213390,0.08002,62519.0,62518.0,0.08002]
[1728406213589,0.13741857,62519.0,62518.0,0.08002]
[1728406213989,0.08002,62519.0,62518.0,0.14317301]
[1728406214187,0.08002,62519.0,62518.0,0.14313616]
[1728406214386,0.0819,62523.0,62518.0,0.14313616]
[1728406214387,0.080016,62522.0,62521.0,0.080015]
[1728406214590,0.200016,62522.0,62521.0,0.080015]
[1728406214789,0.12,62522.0,62521.0,0.080015]
[1728406215295,0.12,62522.0,62521.0,0.260015]
[1728406216092,0.3608,62524.0,62523.0,0.080014]
[1728406217293,0.3648,62524.0,62523.0,0.080014]
[1728406218495,0.3678,62524.0,62523.0,0.080014]
[1728406220093,0.3678,62524.0,62523.0,0.12731931]
[1728406220604,0.3678,62524.0,62523.0,0.080014]
[1728406221698,0.3648,62524.0,62523.0,0.080014]
[1728406221893,0.3648,62524.0,62522.0,0.080015]
[1728406221894,0.080014,62523.0,62522.0,0.080015]
[1728406222091,0.080014,62523.0,62519.0,0.080019]
[1728406222092,0.080018,62520.0,62519.0,0.080019]
[1728406222290,0.080018,62520.0,62507.0,0.00239976]
[1728406222291,0.080019,62519.0,62507.0,0.00239976]
[1728406222496,0.18,62508.0,62507.0,0.00239976]
[1728406222693,0.260033,62508.0,62507.0,0.00239976]
[1728406222901,0.080033,62508.0,62507.0,0.02811917]
[1728406223098,0.23913,62511.0,62507.0,0.00239976]
[1728406223305,0.1874,62511.0,62510.0,0.080031]
[1728406224099,0.11,62511.0,62510.0,0.260031]
[1728406224304,0.080022,62517.0,62515.0,0.080024]
[1728406224606,0.12,62517.0,62516.0,0.080023]
[1728406227214,0.200022,62517.0,62516.0,0.080023]
[1728406228300,0.200022,62517.0,62516.0,0.10526769]
[1728406228902,0.30655137,62517.0,62516.0,0.10526769]
[1728406229302,0.10652937,62517.0,62516.0,0.10526769]
[1728406229512,0.04912601,62517.0,62516.0,0.10526769]
[1728406231509,0.10652937,62517.0,62516.0,0.10526769]
[1728406231699,0.18655137,62517.0,62516.0,0.10526769]
[1728406232699,0.10652937,62517.0,62516.0,0.10526769]
[1728406232906,0.04912601,62517.0,62516.0,0.10526769]
[1728406234808,0.17573501,62517.0,62516.0,0.10526769]
[1728406235200,0.04912601,62517.0,62516.0,0.10526769]
[1728406237018,0.080014,62524.0,62518.0,0.080021]
[1728406237211,0.080014,62524.0,62523.0,0.080014]
[1728406238014,0.080011,62526.0,62525.0,0.080011]
[1728406238314,0.200011,62526.0,62525.0,0.080011]
[1728406239517,0.200011,62526.0,62525.0,0.07959046]
[1728406240111,0.205011,62526.0,62525.0,0.07959046]
[1728406241418,0.209011,62526.0,62525.0,0.07959046]
[1728406242506,0.209011,62526.0,62518.0,0.36212]
[1728406242507,0.080019,62523.0,62522.0,0.080015]
[1728406242710,0.12,62523.0,62522.0,0.080015]
[1728406243516,0.12,62523.0,62522.0,0.10577733]
[1728406243915,0.122,62523.0,62522.0,0.10577733]
[1728406244118,0.228521,62523.0,62522.0,0.10577733]
[1728406244620,0.308535,62523.0,62522.0,0.10577733]
[1728406244815,0.45992482,62523.0,62522.0,0.10577733]
[1728406245019,0.43730967,62523.0,62522.0,0.10577733]
[1728406246523,0.43730967,62523.0,62522.0,0.080015]
[1728406247019,0.309535,62523.0,62522.0,0.080015]
[1728406248025,0.229521,62523.0,62522.0,0.080015]
[1728406248223,0.309535,62523.0,62522.0,0.080015]
[1728406248410,0.080019,62520.0,62518.0,0.3608]
[1728406248616,0.080021,62518.0,62512.0,0.00132]
[1728406248810,0.080021,62518.0,62505.0,0.3608]
[1728406248811,0.08003,62511.0,62510.0,0.08003]
[1728406249024,0.24915737,62511.0,62510.0,0.08003]
[1728406249323,0.080033,62508.0,62504.0,0.080038]
[1728406249519,0.47656068,62508.0,62499.0,0.3608]
[1728406249824,0.47656068,62508.0,62504.0,0.080038]
[1728406250410,0.47656068,62508.0,62505.0,0.080037]
[1728406250614,0.47756068,62508.0,62507.0,0.00539976]
[1728406251509,0.21852768,62508.0,62507.0,0.08743476]
[1728406251717,0.21852768,62508.0,62507.0,0.26743476]
[1728406252012,0.112,62508.0,62507.0,0.26743476]
[1728406252213,0.002,62508.0,62507.0,0.26743476]
[1728406255023,0.002,62508.0,62507.0,0.08743476]
[1728406255224,0.082033,62508.0,62507.0,0.08743476]
[1728406255615,0.681993,62508.0,62490.0,0.080056]
[1728406255823,0.260048,62498.0,62497.0,0.080047]
[1728406256522,0.260048,62498.0,62494.0,0.0475132]
[1728406256523,0.080049,62496.0,62494.0,0.0475132]
[1728406256720,0.62085,62495.0,62494.0,0.0475132]
[1728406256930,0.6508,62495.0,62492.0,0.07580067]
[1728406257115,0.080053,62493.0,62492.0,0.003]
[1728406257315,0.190053,62493.0,62487.0,0.0475132]
[1728406257519,0.080059,62488.0,62487.0,0.1275732]
[1728406257725,0.080059,62488.0,62485.0,0.0475132]
[1728406257726,0.080062,62486.0,62485.0,0.0475132]
[1728406257917,0.080063,62485.0,62484.0,0.1546121]
[1728406258117,0.550863,62485.0,62484.0,0.00240049]
[1728406259538,0.080075,62476.0,62475.0,0.080075]
[1728406259835,0.080075,62476.0,62462.0,0.08249314]
[1728406259836,0.08008,62472.0,62471.0,0.080079]
[1728406260126,0.26008,62472.0,62471.0,0.080079]
[1728406260529,0.080084,62469.0,62468.0,0.080084]
[1728406261328,0.4364,62475.0,62466.0,0.18]
[1728406261630,0.265677,62475.0,62474.0,0.080077]
[1728406262318,0.626477,62475.0,62466.0,0.18]
[1728406262518,0.080084,62470.0,62469.0,0.080083]
[1728406262729,0.440884,62470.0,62469.0,0.080083]
[1728406263023,0.001,62469.0,62464.0,0.0254791]
[1728406263224,0.08009,62464.0,62463.0,0.080091]
[1728406263423,0.080089,62466.0,62465.0,0.080088]
[1728406263627,0.190089,62466.0,62465.0,0.080088]
[1728406264025,0.080091,62463.0,62462.0,0.02701201]
[1728406264220,0.080099,62457.0,62450.0,0.3608]
[1728406264425,0.18,62455.0,62448.0,0.08011]
[1728406264626,0.18,62455.0,62454.0,0.080103]
[1728406264826,0.18,62455.0,62448.0,0.08003]
[1728406264827,0.3608,62458.0,62457.0,0.080099]
[1728406265826,0.3608,62458.0,62457.0,0.07997833]
[1728406266425,0.440897,62458.0,62457.0,0.07997833]
[1728406266629,0.441897,62458.0,62457.0,0.07997833]
[1728406266928,0.442897,62458.0,62457.0,0.07997833]
[1728406267130,0.06510368,62460.0,62457.0,0.07997833]
[1728406267324,0.080097,62458.0,62457.0,0.07997833]
[1728406267532,0.080093,62462.0,62456.0,0.04740112]
[1728406267726,0.080093,62462.0,62461.0,0.080094]
[1728406268328,0.190093,62462.0,62461.0,0.080094]
[1728406268526,0.080097,62459.0,62458.0,0.080097]
[1728406268724,0.080099,62457.0,62456.0,0.04740112]
[1728406268933,0.180099,62457.0,62456.0,0.12750112]
[1728406269133,0.180099,62457.0,62456.0,0.0801]
[1728406269333,0.1,62457.0,62456.0,0.0801]
[1728406269539,0.081092,62462.0,62461.0,0.080094]
[1728406269730,0.192092,62462.0,62461.0,0.081094]
[1728406270039,0.191092,62462.0,62461.0,0.081094]
[1728406270636,0.191092,62462.0,62461.0,0.12736508]
[1728406270935,0.191092,62462.0,62459.0,0.12736608]
[1728406270936,0.370092,62462.0,62459.0,0.12736608]
[1728406271133,0.370092,62462.0,62457.0,0.080098]
[1728406271331,0.370092,62462.0,62459.0,0.04726047]
[1728406271528,0.080095,62460.0,62459.0,0.04726047]
[1728406271833,0.080096,62459.0,62458.0,0.12735647]
[1728406272133,0.180096,62459.0,62458.0,0.080096]
[1728406272535,0.1,62459.0,62458.0,0.080096]
[1728406272934,0.002,62462.0,62461.0,0.080094]
[1728406273135,0.031,62462.0,62461.0,0.080094]
[1728406273328,0.03,62462.0,62461.0,0.080094]
[1728406274329,0.110092,62462.0,62461.0,0.080094]
[1728406274533,0.111092,62462.0,62461.0,0.14411961]
[1728406275039,0.111092,62462.0,62461.0,0.081094]
[1728406275532,0.112092,62462.0,62461.0,0.082094]
[1728406276333,0.112092,62462.0,62461.0,0.002]
[1728406278132,0.112092,62462.0,62461.0,0.28317952]
[1728406278437,0.112092,62462.0,62461.0,0.20417765]
[1728406279140,0.002,62462.0,62461.0,0.20417765]
[1728406279332,0.122,62462.0,62461.0,0.20417765]
[1728406280039,0.202092,62462.0,62461.0,0.20417765]
[1728406280434,0.202092,62462.0,62461.0,0.29897871]
[1728406280634,0.202092,62462.0,62461.0,0.20417646]
[1728406282143,0.202092,62462.0,62461.0,0.082094]
[1728406289147,0.202092,62462.0,62461.0,0.57419032]
[1728406289148,0.09788459,62462.0,62461.0,0.57419032]
[1728406289339,0.09788459,62462.0,62461.0,0.44778732]
[1728406290142,0.09788459,62462.0,62461.0,0.44779896]
[1728406290342,0.09788459,62462.0,62461.0,0.44739226]
[1728406291248,0.09788459,62462.0,62461.0,0.52748626]
[1728406292447,0.09788459,62462.0,62461.0,0.65388926]
[1728406293256,0.36172,62465.0,62461.0,0.72910512]
[1728406293457,0.08009,62464.0,62463.0,0.08009]
[1728406293657,0.1,62464.0,62463.0,0.72748295]
[1728406293958,0.1,62464.0,62463.0,0.86968633]
[1728406294555,0.440874,62477.0,62473.0,0.080078]
[1728406294748,0.540874,62477.0,62476.0,0.080074]
[1728406294942,0.180074,62477.0,62476.0,0.52581036]
[1728406295755,0.184074,62477.0,62476.0,0.52581036]
[1728406295943,0.364074,62477.0,62476.0,0.44573636]
[1728406296145,0.080081,62473.0,62472.0,0.080078]
[1728406296349,0.24924435,62473.0,62472.0,0.080078]
[1728406296550,0.30669134,62473.0,62472.0,0.080078]
[1728406296754,0.10661034,62473.0,62472.0,0.07671563]
[1728406296948,0.04916335,62473.0,62472.0,0.07671563]
[1728406297149,0.25714264,62473.0,62472.0,0.07671563]
[1728406297548,0.10661034,62473.0,62472.0,0.07671563]
[1728406297751,0.04916335,62473.0,62472.0,0.07671563]
[1728406297951,0.25714264,62473.0,62472.0,0.07671563]
[1728406298348,0.04916335,62473.0,62472.0,0.07671563]
[1728406299252,0.25814264,62473.0,62472.0,0.07671563]
[1728406299458,0.25814264,62473.0,62472.0,0.25671563]
[1728406299653,0.25813728,62473.0,62472.0,0.25671563]
[1728406299849,0.10760498,62473.0,62472.0,0.25671563]
[1728406300159,0.05015799,62473.0,62472.0,0.25671563]
[1728406300553,0.10760498,62473.0,62472.0,0.25671563]
[1728406300759,0.05015799,62473.0,62472.0,0.25671563]
[1728406301452,0.05215799,62473.0,62472.0,0.25671563]
[1728406301652,0.05215799,62473.0,62472.0,1.33691563]
[1728406302056,0.05315799,62473.0,62472.0,1.33691563]
[1728406302656,0.05415799,62473.0,62472.0,1.33691563]
[1728406303960,0.02097757,62473.0,62472.0,1.33691563]
[1728406304157,0.20797929,62480.0,62472.0,1.33691563]
[1728406304352,0.20797929,62480.0,62479.0,0.44087]
[1728406304560,0.080063,62485.0,62484.0,0.080064]
[1728406305356,0.200063,62485.0,62484.0,0.080064]
[1728406305557,0.12,62485.0,62484.0,0.080064]
[1728406305856,0.200063,62485.0,62484.0,0.080064]
[1728406306167,0.207063,62485.0,62484.0,0.080064]
[1728406307053,0.215063,62485.0,62484.0,0.080064]
[1728406307757,0.215063,62485.0,62475.0,0.3608]
[1728406307955,0.260074,62476.0,62475.0,0.3608]
[1728406308151,0.380074,62476.0,62475.0,0.3608]
[1728406308354,0.080081,62471.0,62470.0,0.02473034]
[1728406308563,0.360081,62471.0,62462.0,0.3608]
[1728406308763,0.260087,62467.0,62466.0,0.080086]
[1728406309060,0.3,62467.0,62462.0,0.3608]
[1728406309259,0.08009,62464.0,62463.0,0.08009]
[1728406310152,0.080086,62468.0,62467.0,0.080083]
[1728406310353,0.09,62468.0,62467.0,0.080083]
[1728406311766,0.170085,62468.0,62467.0,0.080083]
[1728406311958,0.172085,62468.0,62467.0,0.083083]
[1728406318864,0.092,62468.0,62467.0,0.083083]
[1728406319065,0.172085,62468.0,62467.0,0.083083]
[1728406319272,0.172085,62468.0,62451.0,0.080106]
[1728406319273,0.4587016,62468.0,62451.0,0.080106]
[1728406319481,0.18,62455.0,62454.0,0.08250445]
[1728406319772,0.22916502,62455.0,62454.0,0.080103]
[1728406320672,0.04916502,62455.0,62454.0,0.10598522]
[1728406320872,0.04917327,62457.0,62454.0,0.02588222]
[1728406321173,0.04917327,62457.0,62456.0,0.0801]
[1728406321362,0.04917327,62457.0,62456.0,0.2601]
[1728406322176,0.04917327,62457.0,62456.0,0.74042]
[1728406322378,0.04617327,62457.0,62456.0,1.70122]
[1728406322574,0.04717327,62457.0,62456.0,1.70122]
[1728406323372,0.04817327,62457.0,62456.0,1.70122]
[1728406324578,0.002,62457.0,62456.0,1.70122]
[1728406326170,0.17566484,62465.0,62464.0,0.08009]
[1728406326376,0.17566484,62465.0,62464.0,0.29729212]
[1728406326778,0.17566484,62465.0,62464.0,0.20215205]
[1728406326979,0.17566484,62465.0,62464.0,0.20215116]
[1728406327581,0.17666484,62465.0,62464.0,0.20215116]
[1728406328081,0.17766484,62465.0,62464.0,0.20215118]
[1728406328878,0.07324976,62465.0,62464.0,1.63107292]
[1728406329083,0.05750483,62465.0,62464.0,1.78937292]
[1728406330375,0.002,62465.0,62464.0,1.78937292]
[1728406330887,0.002,62465.0,62464.0,1.7252105]
[1728406331080,0.002,62465.0,62464.0,1.61431275]
[1728406331479,0.1619,62484.0,62464.0,1.53422275]
[1728406331683,0.0777,62484.0,62483.0,0.260065]
[1728406332085,0.0777,62484.0,62483.0,0.38209674]
[1728406332384,0.0813,62490.0,62483.0,0.4771261]
[1728406332586,0.161356,62490.0,62489.0,0.080058]
[1728406333489,0.080058,62489.0,62484.0,0.07914394]
[1728406333683,0.080065,62483.0,62482.0,0.07914394]
[1728406333884,0.080068,62481.0,62480.0,0.18478034]
[1728406334082,0.11,62481.0,62480.0,0.1056364]
[1728406334275,0.11,62481.0,62473.0,0.440878]
[1728406334276,0.21659228,62481.0,62473.0,0.440878]
[1728406334586,0.10659228,62480.0,62473.0,0.440878]
[1728406334784,0.10659228,62479.0,62473.0,0.46654882]
[1728406334992,0.10659193,62478.0,62477.0,0.080073]
[1728406336494,0.10658575,62478.0,62477.0,0.080073]
[1728406337683,0.10758575,62478.0,62477.0,0.080073]
[1728406338588,0.10858575,62478.0,62477.0,0.080073]
[1728406339385,0.10958575,62478.0,62477.0,0.080073]
[1728406340394,0.05214868,62478.0,62477.0,0.080073]
[1728406340887,0.20741643,62483.0,62476.0,0.09185953]
[1728406341086,0.0813,62490.0,62489.0,0.080058]
[1728406341283,0.33553454,62490.0,62489.0,0.42484571]
[1728406341793,0.33553454,62490.0,62489.0,0.06404571]
[1728406342096,0.0813,62490.0,62489.0,0.06404571]
[1728406343882,0.0933,62490.0,62489.0,0.06404571]
[1728406344290,0.023,62490.0,62489.0,0.06404571]
[1728406344483,0.023,62490.0,62489.0,0.08979444]
[1728406344995,0.0821,62507.0,62506.0,0.080036]
[1728406345196,0.1621,62507.0,62506.0,0.260036]
[1728406345383,0.0821,62507.0,62506.0,0.260036]
[1728406345784,0.0821,62507.0,62506.0,0.080036]
[1728406347100,0.176135,62507.0,62506.0,0.080036]
[1728406347990,0.190135,62507.0,62506.0,0.081036]
[1728406348382,0.190135,62507.0,62506.0,0.10657289]
[1728406349397,0.36237601,62507.0,62501.0,0.14836069]
[1728406349693,0.17224101,62506.0,62501.0,0.22840169]
[1728406349899,0.17224101,62505.0,62501.0,0.22840169]
[1728406350102,0.17224101,62504.0,62501.0,0.22840169]
[1728406350393,0.17224101,62503.0,62502.0,0.080041]
[1728406351788,0.17224101,62503.0,62502.0,0.440841]
[1728406352094,0.17724101,62503.0,62502.0,0.441841]
[1728406353096,0.18924101,62503.0,62502.0,0.442841]
[1728406353398,0.18924101,62503.0,62502.0,0.002]
[1728406353993,0.18924101,62503.0,62502.0,0.082041]
[1728406354397,0.18924101,62503.0,62501.0,0.08539496]
[1728406354596,0.17224101,62502.0,62501.0,0.16543696]
[1728406355097,0.35228201,62502.0,62501.0,0.02509837]
[1728406355299,0.35228201,62502.0,62498.0,0.080046]
[1728406355300,0.080045,62499.0,62498.0,0.080046]
[1728406355503,0.30315117,62499.0,62498.0,0.080046]
[1728406355701,0.080056,62491.0,62490.0,0.080055]
[1728406355888,0.20316217,62491.0,62490.0,0.080055]
[1728406356096,0.12310617,62491.0,62490.0,0.080055]
[1728406356296,0.080055,62491.0,62490.0,0.080055]
[1728406356490,0.1555,62494.0,62489.0,0.02762546]
[1728406356491,0.235552,62494.0,62493.0,0.080053]
[1728406356697,0.345552,62494.0,62493.0,0.080053]
[1728406356992,0.1555,62494.0,62493.0,0.080053]
[1728406357689,0.1655,62494.0,62493.0,0.081053]
[1728406359505,0.1765,62494.0,62493.0,0.082053]
[1728406362801,0.1765,62494.0,62493.0,0.002]
[1728406362802,0.256551,62494.0,62493.0,0.002]
[1728406363702,0.256551,62494.0,62489.0,0.38602512]
[1728406363703,0.080056,62490.0,62489.0,0.3608]
[1728406364007,0.200056,62490.0,62489.0,0.3608]
[1728406364214,0.200056,62490.0,62489.0,0.440858]
[1728406364215,0.12,62490.0,62489.0,0.440858]
[1728406364399,0.1765,62494.0,62493.0,0.080053]
[1728406364698,0.0964,62494.0,62493.0,0.080053]
[1728406364900,0.0864,62494.0,62493.0,0.080053]
[1728406365105,0.0754,62494.0,62493.0,0.080053]
[1728406365410,0.155451,62494.0,62493.0,0.080053]
[1728406366001,0.265451,62494.0,62493.0,0.080053]
[1728406366305,0.080056,62491.0,62490.0,0.080055]
[1728406367100,0.0854,62494.0,62489.0,0.181]
[1728406367306,0.265451,62494.0,62493.0,0.080053]
[1728406367503,0.255451,62494.0,62493.0,0.080053]
[1728406368004,0.266451,62494.0,62493.0,0.081053]
[1728406368203,0.1864,62494.0,62493.0,0.081053]
[1728406368399,0.266451,62494.0,62493.0,0.081053]
[1728406369504,0.0864,62494.0,62493.0,0.261053]
[1728406369700,0.0964,62494.0,62493.0,0.262053]
[1728406371405,0.15382432,62494.0,62493.0,0.262053]
[1728406372007,0.07842432,62494.0,62493.0,0.262053]
[1728406373807,0.17842432,62494.0,62493.0,0.262053]
[1728406375011,0.25847532,62494.0,62493.0,0.262053]
[1728406376711,0.25769277,62494.0,62493.0,0.262053]
[1728406378002,0.25769277,62494.0,62493.0,0.082053]
[1728406378205,0.25769277,62494.0,62493.0,0.002]
[1728406378407,0.080059,62488.0,62487.0,0.02548417]
[1728406378608,0.190059,62488.0,62485.0,0.080062]
[1728406378814,0.080061,62486.0,62485.0,0.080062]
[1728406379116,0.23748532,62486.0,62485.0,0.080062]
[1728406379315,0.251261,62486.0,62485.0,0.080062]
[1728406379715,0.251261,62486.0,62484.0,0.18]
[1728406379916,0.080063,62485.0,62484.0,0.260063]
[1728406380104,0.1712,62486.0,62485.0,0.080063]
[1728406380105,0.0742,62486.0,62485.0,0.080063]
[1728406380419,0.274261,62486.0,62485.0,0.080063]
[1728406380618,0.276261,62486.0,62485.0,0.080063]
[1728406381210,0.273261,62486.0,62485.0,0.080063]